fUSD/lending_fUSD_20240301
["ID","MTS","AMOUNT","RATE_DAILY","PERIOD"]
[315919304,1709281839650,-1334.0,0.00022342,2]
[315919305,1709281839659,-500.0,0.00022342,2]
[315919306,1709281839669,-500.0,0.00022342,2]
[315919307,1709281839678,-212.15197041,0.00022342,2]
[315919308,1709281839687,-500.0,0.00022342,2]
[315919309,1709281839696,-531.8,0.00022342,2]
[315919310,1709281839705,-500.0,0.00022342,2]
[315919311,1709281839714,-777.83,0.00022342,2]
[315919312,1709281839724,-500.0,0.00022342,2]
[315919313,1709281839733,-427.31018042,0.00022342,2]
[315919314,1709281839743,-500.0,0.00022342,2]
[315919315,1709281839752,-500.0,0.00022342,2]
[315919316,1709281839762,-850.93,0.00022343,2]
[315919317,1709281839771,-2264.3,0.00022343,2]
[315919318,1709281839781,-1272.48,0.00022343,2]
[315919319,1709281839790,-1191.77,0.00022343,2]
[315919320,1709281839800,-1702.96,0.00022343,2]
[315919321,1709281839809,-1561.73,0.00022343,2]
[315919322,1709281839818,-500.0,0.00022343,2]
[315919323,1709281839827,-2733.44,0.00022343,2]
[315919324,1709281839836,-30899.74,0.00022343,2]
[315919325,1709281839846,-2997.59,0.00022343,2]
[315919326,1709281839855,-1543.0,0.00022343,2]
[315919327,1709281839864,-5831.47,0.00022343,2]
[315919329,1709281839873,-1149.26,0.00022343,2]
[315919331,1709281839883,-593.88,0.00022343,2]
[315919333,1709281839892,-500.0,0.00022343,2]
[315919335,1709281839902,-2554.06,0.00022343,2]
[315919337,1709281839911,-500.0,0.00022343,2]
[315919339,1709281839920,-1157.87,0.00022343,2]
[315919341,1709281839930,-1109.93,0.00022343,2]
[315919343,1709281839939,-677.37,0.00022343,2]
[315919346,1709281839948,-715.66,0.00022343,2]
[315919348,1709281839957,-1128.4,0.00022343,2]
[315919350,1709281839967,-1331.73,0.00022343,2]
[315919352,1709281839976,-1201.7,0.00022343,2]
[315919354,1709281839985,-13395.47,0.00022343,2]
[315919356,1709281839995,-1620.7,0.00022343,2]
[315919358,1709281840004,-679.81,0.00022343,2]
[315919360,1709281840013,-790.75,0.00022343,2]
[315919366,1709281840090,-1137.94,0.00022343,2]
[315919368,1709281840100,-678.29,0.00022343,2]
[315919370,1709281840109,-1501.85,0.00022343,2]
[315919372,1709281840118,-936.0,0.00022343,2]
[315919374,1709281840127,-587.11,0.00022343,2]
[315919376,1709281840136,-2639.55,0.00022343,2]
[315919378,1709281840146,-1617.69,0.00022343,2]
[315919380,1709281840155,-1860.67,0.00022343,2]
[315919382,1709281840164,-2560.03442286,0.00022343,2]
[315919389,1709281840219,-379.92557714,0.00022343,2]
[315919390,1709281840229,-1126.79,0.00022343,2]
[315919391,1709281840238,-826.49,0.00022343,2]
[315919392,1709281840247,-1787.7,0.00022343,2]
[315919393,1709281840256,-2559.91,0.00022343,2]
[315919394,1709281840265,-500.0,0.00022343,2]
[315919395,1709281840275,-1050.1,0.00022343,2]
[315919396,1709281840284,-1532.41,0.00022343,2]
[315919397,1709281840293,-875.91,0.00022343,2]
[315919398,1709281840302,-2133.59,0.00022343,2]
[315919399,1709281840311,-1160.59,0.00022343,2]
[315919400,1709281840321,-1937.69,0.00022343,2]
[315919401,1709281840331,-1905.87,0.00022343,2]
[315919402,1709281840341,-2735.4,0.00022343,2]
[315919403,1709281840350,-4012.96,0.00022343,2]
[315919404,1709281840359,-1267.05324622,0.00022343,2]
[315919405,1709281840373,-29.18675378,0.00022343,2]
[315919406,1709281840382,-347.72847202,0.00022343,2]
[315919407,1709281840451,-481.0,0.00022343,2]
[315919408,1709281840462,-5744.28152798,0.00022343,2]
[315919409,1709281840472,-500.0,0.00022343,2]
[315919410,1709281840481,-1336.38703165,0.00022343,2]
[315919419,1709281841336,-322.0,0.00021541,2]
[315919420,1709281841346,-198.17170776,0.00022026,2]
[315919421,1709281841355,-500.0,0.00022068,2]
[315919422,1709281841365,-500.0,0.0002207,2]
[315919423,1709281841374,-203.61,0.00022161,3]
[315919424,1709281841384,-500.0,0.00022342,2]
[315919425,1709281841395,-235.57296835,0.00022343,2]
[315919426,1709281841404,-15.76228389,0.00022343,2]
[315919427,1709281841436,-1192.90771611,0.00022343,2]
[315919428,1709281841447,-500.0,0.00022343,2]
[315919429,1709281841457,-842.59154523,0.00022343,2]
[315919430,1709281841470,-486.54845477,0.00022343,2]
[315919431,1709281841479,-2277.71,0.00022343,2]
[315919432,1709281841490,-2150.51,0.00022343,2]
[315919433,1709281841499,-647.14128723,0.00022343,2]
[315919434,1709281841741,-928.68913754,0.00022343,2]
[315919466,1709281842982,-2577.57343777,0.00022343,2]
[315919467,1709281843030,-5394.56613746,0.00022343,2]
[315919468,1709281843039,-468.23824144,0.00022343,2]
[315919469,1709281843051,-1256.88901314,0.00022343,2]
[315919470,1709281843100,-688.56235155,0.00022343,2]
[315919471,1709281843112,-927.40039387,0.00022343,2]
[315919472,1709281843122,-5020.27113798,0.00022343,2]
[315919473,1709281843134,-1495.60886202,0.00022343,2]
[315919474,1709281843145,-1414.7432679,0.00022343,2]
[315919475,1709281843358,-1164.8767321,0.00022343,2]
[315919476,1709281843368,-601.45516038,0.00022344,2]
[315919477,1709281843378,-500.0,0.00022344,2]
[315919478,1709281843387,-134.95720683,0.00022344,2]
[315919479,1709281843402,-208.65432418,0.00022344,2]
[315919480,1709281843412,-500.0,0.00022344,2]
[315919481,1709281843421,-500.0,0.00022344,2]
[315919482,1709281843431,-500.0,0.00022344,2]
[315919483,1709281843441,-710.96,0.00022344,2]
[315919484,1709281843451,-440.35135216,0.00022344,2]
[315919485,1709281843461,-500.0,0.00022344,2]
[315919486,1709281843473,-589.49,0.00022344,2]
[315919487,1709281843482,-500.0,0.00022344,2]
[315919488,1709281843492,-522.81,0.00022344,2]
[315919489,1709281843502,-534.73,0.00022344,2]
[315919490,1709281843512,-902.25,0.00022344,2]
[315919491,1709281843521,-500.0,0.00022344,2]
[315919492,1709281843531,-500.0,0.00022344,2]
[315919493,1709281843541,-803.41,0.00022344,2]
[315919494,1709281843552,-500.0,0.00022344,2]
[315919495,1709281843562,-1595.24,0.00022344,2]
[315919496,1709281843572,-500.0,0.00022344,2]
[315919497,1709281843581,-660.46,0.00022344,2]
[315919498,1709281843591,-500.0,0.00022344,2]
[315919499,1709281843600,-1099.71,0.00022344,2]
[315919500,1709281843610,-709.94,0.00022344,2]
[315919501,1709281843620,-594.68,0.00022344,2]
[315919502,1709281843629,-500.0,0.00022344,2]
[315919503,1709281843639,-541.36,0.00022344,2]
[315919504,1709281843648,-500.0,0.00022344,2]
[315919505,1709281843658,-500.0,0.00022344,2]
[315919506,1709281843667,-500.0,0.00022344,2]
[315919507,1709281843677,-500.0,0.00022344,2]
[315919508,1709281843687,-500.0,0.00022344,2]
[315919509,1709281843696,-874.79,0.00022344,2]
[315919510,1709281843705,-824.83,0.00022344,2]
[315919511,1709281843715,-500.0,0.00022344,2]
[315919512,1709281843724,-716.47,0.00022344,2]
[315919513,1709281843733,-500.0,0.00022344,2]
[315919514,1709281843743,-500.0,0.00022344,2]
[315919515,1709281843753,-831.36,0.00022344,2]
[315919516,1709281843762,-500.0,0.00022344,2]
[315919517,1709281843772,-617.53,0.00022344,2]
[315919518,1709281843781,-401.34402379,0.00022344,2]
[315919535,1709281848861,-277.0,0.00021626,2]
[315919537,1709281848871,-289.32868588,0.00022068,2]
[315919539,1709281848880,-500.0,0.00022068,2]
[315919541,1709281848890,-500.0,0.00022068,2]
[315919543,1709281848899,-560.0,0.00022068,2]
[315919545,1709281848910,-500.0,0.00022068,2]
[315919547,1709281848920,-500.0,0.00022068,2]
[315919549,1709281848929,-500.0,0.00022069,2]
[315919551,1709281848938,-2064.52,0.00022069,2]
[315919552,1709281848947,-386.45587457,0.00022069,2]
[315919553,1709281848956,-1092.46,0.00022069,2]
[315919554,1709281848966,-500.0,0.00022069,2]
[315919555,1709281848975,-923.51,0.0002207,2]
[315919556,1709281848984,-7940.22543955,0.0002207,2]
[315919557,1709281848996,-1816.63874833,0.0002207,2]
[315919558,1709281849050,-7352.22581212,0.0002207,2]
[315919559,1709281849060,-8467.66,0.0002207,2]
[315919560,1709281849070,-500.0,0.0002217,2]
[315919561,1709281849079,-441.33364946,0.00022299,2]
[315919562,1709281849089,-974.25220579,0.00022342,2]
[315919563,1709281849098,-500.0,0.00022342,2]
[315919564,1709281849107,-560.0,0.00022342,2]
[315919565,1709281849116,-500.0,0.00022342,2]
[315919566,1709281849126,-500.0,0.00022343,2]
[315919567,1709281849135,-2064.52,0.00022343,2]
[315919568,1709281849144,-1092.46,0.00022343,2]
[315919569,1709281849156,-500.0,0.00022343,2]
[315919570,1709281849166,-98.65597621,0.00022344,2]
[315919571,1709281849176,-669.23,0.00022344,2]
[315919572,1709281849186,-598.9,0.00022344,2]
[315919573,1709281849196,-500.0,0.00022344,2]
[315919574,1709281849206,-500.0,0.00022344,2]
[315919575,1709281849217,-660.92,0.00022344,2]
[315919576,1709281849227,-633.59,0.00022344,2]
[315919577,1709281849237,-500.0,0.00022344,2]
[315919578,1709281849247,-500.0,0.00022344,2]
[315919579,1709281849257,-521.77,0.00022344,2]
[315919580,1709281849268,-500.0,0.00022344,2]
[315919581,1709281849278,-500.0,0.00022344,2]
[315919582,1709281849287,-1358.1,0.00022344,2]
[315919583,1709281849297,-776.94,0.00022344,2]
[315919584,1709281849307,-569.01,0.00022344,2]
[315919585,1709281849317,-692.56,0.00022344,2]
[315919586,1709281849327,-368.32659145,0.00022344,2]
[315919587,1709281849337,-903.65,0.00022344,2]
[315919588,1709281849346,-1184.19,0.00022344,2]
[315919589,1709281849356,-567.67,0.00022344,2]
[315919590,1709281849365,-652.6,0.00022344,2]
[315919591,1709281849375,-500.0,0.00022344,2]
[315919592,1709281849385,-500.0,0.00022344,2]
[315919593,1709281849394,-500.0,0.00022344,2]
[315919594,1709281849404,-500.0,0.00022344,2]
[315919595,1709281849414,-500.0,0.00022344,2]
[315919596,1709281849423,-500.0,0.00022344,2]
[315919597,1709281849432,-523.02268056,0.00022344,2]
[315919598,1709281849441,-349.70554786,0.00022344,2]
[315919599,1709281849451,-858.64,0.00022344,2]
[315919600,1709281849460,-244.63,0.00022344,2]
[315919601,1709281849472,-510.63,0.00022344,2]
[315919602,1709281849481,-500.0,0.00022344,2]
[315919603,1709281849490,-500.0,0.00022344,2]
[315919604,1709281849499,-500.0,0.00022344,2]
[315919605,1709281849509,-920.22,0.00022344,2]
[315919606,1709281849518,-1043.81,0.00022344,2]
[315919607,1709281849528,-500.0,0.00022344,2]
[315919608,1709281849537,-817.33,0.00022344,2]
[315919609,1709281849547,-2115.21,0.00022344,2]
[315919610,1709281849557,-694.65,0.00022344,2]
[315919611,1709281849566,-620.14,0.00022344,2]
[315919612,1709281849575,-597.15,0.00022344,2]
[315919613,1709281849585,-1448.82,0.00022344,2]
[315919614,1709281849594,-3150.45,0.00022344,2]
[315919615,1709281849603,-500.0,0.00022344,2]
[315919616,1709281849614,-11707.76,0.00022344,2]
[315919617,1709281849626,-542.70955441,0.00022344,2]
[315919618,1709281849635,-500.0,0.00022344,2]
[315919619,1709281849645,-560.30351645,0.00022344,2]
[315919620,1709281849656,-500.0,0.00022344,2]
[315919621,1709281849666,-2203.53,0.00022344,2]
[315919622,1709281849675,-603.88,0.00022344,2]
[315919623,1709281849685,-965.98,0.00022344,2]
[315919624,1709281849694,-840.74,0.00022344,2]
[315919625,1709281849703,-6979.77,0.00022344,2]
[315919626,1709281849713,-1034.31,0.00022344,2]
[315919627,1709281849722,-500.0,0.00022344,2]
[315919628,1709281849731,-2994.3,0.00022344,2]
[315919629,1709281849745,-500.0,0.00022344,2]
[315919630,1709281849754,-500.0,0.00022344,2]
[315919631,1709281849764,-830.92,0.00022344,2]
[315919632,1709281849774,-1184.79,0.00022344,2]
[315919633,1709281849783,-664.37,0.00022344,2]
[315919634,1709281849792,-500.0,0.00022344,2]
[315919635,1709281849801,-1729.43,0.00022344,2]
[315919636,1709281849810,-796.2,0.00022344,2]
[315919637,1709281849819,-500.0,0.00022344,2]
[315919638,1709281849828,-560.95,0.00022344,2]
[315919639,1709281849836,-870.17,0.00022344,2]
[315919640,1709281849845,-1854.85,0.00022344,2]
[315919641,1709281849854,-596.11,0.00022344,2]
[315919642,1709281849863,-1822.5,0.00022344,2]
[315919643,1709281849872,-767.65,0.00022344,2]
[315919644,1709281849881,-2038.81,0.00022344,2]
[315919645,1709281849890,-500.0,0.00022344,2]
[315919646,1709281849899,-4484.19,0.00022344,2]
[315919647,1709281849910,-1456.06,0.00022344,2]
[315919648,1709281849919,-505.74832556,0.00022344,2]
[315919649,1709281849929,-500.0,0.00022344,2]
[315919650,1709281849938,-500.0,0.00022344,2]
[315919651,1709281849947,-819.64,0.00022344,2]
[315919652,1709281849957,-5057.34,0.00022344,2]
[315919653,1709281849966,-500.0,0.00022344,2]
[315919654,1709281849976,-500.0,0.00022344,2]
[315919655,1709281849985,-580.3,0.00022344,2]
[315919656,1709281849994,-2381.66,0.00022344,2]
[315919657,1709281850004,-921.73,0.00022344,2]
[315919658,1709281850014,-1071.36,0.00022344,2]
[315919659,1709281850023,-500.0,0.00022344,2]
[315919660,1709281850032,-725.45,0.00022344,2]
[315919661,1709281850042,-1926.51,0.00022344,2]
[315919662,1709281850051,-500.0,0.00022344,2]
[315919663,1709281850061,-501.99880253,0.00022344,2]
[315919664,1709281850071,-500.0,0.00022344,2]
[315919665,1709281850081,-500.0,0.00022344,2]
[315919666,1709281850090,-539.04769624,0.00022344,2]
[315919667,1709281850099,-500.0,0.00022344,2]
[315919668,1709281850110,-599.16494944,0.00022344,2]
[315919669,1709281850120,-664.15,0.00022344,2]
[315919670,1709281850130,-500.0,0.00022344,2]
[315919671,1709281850140,-1305.93,0.00022344,2]
[315919672,1709281850226,-502.65233776,0.00022344,2]
[315919673,1709281850236,-1028.18,0.00022344,2]
[315919674,1709281850245,-500.0,0.00022344,2]
[315919675,1709281850255,-500.0,0.00022344,2]
[315919676,1709281850264,-501.81720848,0.00022344,2]
[315919677,1709281850273,-2025.63,0.00022344,2]
[315919678,1709281850283,-500.0,0.00022344,2]
[315919679,1709281850292,-500.0,0.00022344,2]
[315919680,1709281850305,-4269.29,0.00022344,2]
[315919681,1709281850315,-500.0,0.00022344,2]
[315919682,1709281850325,-2539.11,0.00022344,2]
[315919683,1709281850334,-502.71220452,0.00022344,2]
[315919684,1709281850343,-500.0,0.00022344,2]
[315919685,1709281850352,-500.0,0.00022344,2]
[315919686,1709281850361,-820.73,0.00022344,2]
[315919687,1709281850371,-502.91940076,0.00022344,2]
[315919688,1709281850380,-569.39,0.00022344,2]
[315919689,1709281850389,-500.0,0.00022344,2]
[315919690,1709281850398,-348.55536745,0.00022344,2]
[315919691,1709281850408,-500.0,0.00022344,2]
[315919692,1709281850418,-500.0,0.00022344,2]
[315919693,1709281850427,-923.51,0.00022344,2]
[315919694,1709281850437,-17109.09,0.00022344,2]
[315919695,1709281850447,-8467.66,0.00022344,2]
[315919696,1709281850456,-300.0,0.00022348,2]
[315919697,1709281850467,-330.49920374,0.00022348,2]
[315919698,1709281850477,-240.53516271,0.00022371,2]
[315919699,1709281850486,-553.79,0.00022379,2]
[315919700,1709281850496,-200.0,0.00022387,2]
[315919701,1709281850505,-5831.8875,0.00022399,2]
[315919702,1709281850515,-240.53516271,0.00022407,2]
[315919703,1709281850524,-5326.66150232,0.00022427,2]
[315919704,1709281850534,-153.95133491,0.00022431,2]
[315919705,1709281850544,-1602.47596731,0.00022439,2]
[315919706,1709281850554,-6561.57579349,0.00022439,2]
[315919707,1709281850563,-188.4259836,0.00022439,2]
[315919708,1709281850573,-1457.83,0.00022444,2]
[315919709,1709281850582,-1822.25,0.00022444,2]
[315919710,1709281850592,-1378.53,0.00022444,2]
[315919711,1709281850601,-2020.28,0.00022444,2]
[315919712,1709281850611,-501.88,0.00022444,2]
[315919713,1709281850620,-1867.2,0.00022444,2]
[315919714,1709281850630,-2721.75,0.00022444,2]
[315919715,1709281850640,-500.0,0.00022444,2]
[315919716,1709281850649,-2017.19,0.00022444,2]
[315919717,1709281850659,-6065.32,0.00022444,2]
[315919718,1709281850668,-831.32,0.00022444,2]
[315919719,1709281850678,-2336.3,0.00022444,2]
[315919720,1709281850687,-3295.48,0.00022444,2]
[315919721,1709281850696,-820.71,0.00022444,2]
[315919722,1709281850705,-1028.87,0.00022444,2]
[315919723,1709281850715,-857.27,0.00022444,2]
[315919724,1709281850724,-882.49,0.00022444,2]
[315919725,1709281850733,-1250.88,0.00022444,2]
[315919726,1709281850743,-815.32,0.00022444,2]
[315919727,1709281850752,-500.0,0.00022444,2]
[315919728,1709281850762,-1224.95,0.00022444,2]
[315919729,1709281850771,-796.74,0.00022444,2]
[315919730,1709281850782,-500.0,0.00022444,2]
[315919731,1709281850792,-240.53516271,0.00022444,2]
[315919732,1709281850801,-3374.50692715,0.00022449,3]
[315919733,1709281850811,-3014.27618269,0.00022449,3]
[315919734,1709281850821,-182.70227191,0.00022449,3]
[315919735,1709281850831,-4091.17134934,0.00022449,3]
[315919736,1709281850840,-500.0,0.00022449,3]
[315919737,1709281850850,-1566.16066589,0.00022449,3]
[315919738,1709281850859,-1516.01256661,0.00022449,3]
[315919739,1709281850869,-180.78880683,0.00022456,2]
[315919740,1709281850878,-500.0,0.00022464,2]
[315919741,1709281850887,-1278.97,0.00022464,2]
[315919742,1709281850897,-1252.75,0.00022465,2]
[315919743,1709281850908,-834.07,0.00022465,2]
[315919744,1709281850918,-811.47,0.00022465,2]
[315919745,1709281850928,-1196.69,0.00022465,2]
[315919746,1709281850938,-1256.32,0.00022465,2]
[315919747,1709281850947,-689.63,0.00022465,2]
[315919748,1709281850957,-1147.47,0.00022465,2]
[315919749,1709281850966,-1297.85,0.00022465,2]
[315919750,1709281850975,-6863.48,0.00022465,2]
[315919751,1709281850985,-500.0,0.00022465,2]
[315919752,1709281850994,-752.53,0.00022465,2]
[315919753,1709281851004,-240.53516271,0.00022481,2]
[315919754,1709281851013,-553.79,0.00022495,2]
[315919755,1709281851023,-177.63044658,0.00022498,2]
[315919756,1709281851032,-500.0,0.00022498,2]
[315919757,1709281851042,-844.45,0.00022498,2]
[315919758,1709281851052,-500.0,0.00022498,2]
[315919759,1709281851062,-500.0,0.00022498,2]
[315919760,1709281851073,-500.0,0.00022498,2]
[315919761,1709281851082,-500.0,0.00022498,2]
[315919762,1709281851092,-500.0,0.00022498,2]
[315919763,1709281851101,-500.0,0.00022498,2]
[315919764,1709281851111,-506.77715689,0.00022498,2]
[315919765,1709281851121,-500.0,0.00022498,2]
[315919766,1709281851131,-500.0,0.00022498,2]
[315919767,1709281851141,-500.0,0.00022498,2]
[315919768,1709281851150,-500.0,0.00022498,2]
[315919769,1709281851163,-500.0,0.00022498,2]
[315919770,1709281851173,-500.0,0.00022498,2]
[315919771,1709281851183,-500.0,0.00022498,2]
[315919772,1709281851193,-500.0,0.00022498,2]
[315919773,1709281851203,-500.0,0.00022498,2]
[315919774,1709281851214,-500.0,0.00022498,2]
[315919775,1709281851225,-500.0,0.00022498,2]
[315919776,1709281851234,-500.0,0.00022498,2]
[315919777,1709281851244,-500.0,0.00022498,2]
[315919778,1709281851254,-500.0,0.00022498,2]
[315919779,1709281851264,-500.0,0.00022498,2]
[315919780,1709281851274,-500.0,0.00022498,2]
[315919781,1709281851284,-511.81874383,0.00022498,2]
[315919782,1709281851294,-500.0,0.00022498,2]
[315919783,1709281851304,-506.0743783,0.00022498,2]
[315919784,1709281851314,-500.0,0.00022498,2]
[315919785,1709281851325,-500.0,0.00022498,2]
[315919786,1709281851336,-500.0,0.00022498,2]
[315919787,1709281851346,-500.0,0.00022498,2]
[315919788,1709281851358,-500.0,0.00022498,2]
[315919789,1709281851369,-500.0,0.00022498,2]
[315919790,1709281851379,-500.0,0.00022498,2]
[315919791,1709281851389,-500.0,0.00022498,2]
[315919792,1709281851400,-500.0,0.00022498,2]
[315919793,1709281851411,-500.0,0.00022498,2]
[315919794,1709281851422,-177.99726739,0.00022498,2]
[315919795,1709281851432,-500.0,0.00022498,2]
[315919796,1709281851441,-500.0,0.00022498,2]
[315919797,1709281851452,-500.0,0.00022498,2]
[315919798,1709281851462,-500.0,0.00022498,2]
[315919799,1709281851472,-523.42,0.00022498,2]
[315919800,1709281851482,-500.0,0.00022498,2]
[315919801,1709281851492,-500.0,0.00022498,2]
[315919802,1709281851501,-500.0,0.00022498,2]
[315919803,1709281851511,-500.0,0.00022498,2]
[315919804,1709281851520,-500.0,0.00022498,2]
[315919805,1709281851529,-504.29372178,0.00022498,2]
[315919806,1709281851539,-500.0,0.00022498,2]
[315919807,1709281851552,-736.27,0.00022498,2]
[315919808,1709281851561,-500.0,0.00022498,2]
[315919809,1709281851569,-500.0,0.00022498,2]
[315919810,1709281851579,-500.0,0.00022498,2]
[315919811,1709281851588,-500.0,0.00022498,2]
[315919812,1709281851597,-500.0,0.00022498,2]
[315919813,1709281851607,-500.0,0.00022498,2]
[315919814,1709281851616,-500.0,0.00022498,2]
[315919815,1709281851625,-500.0,0.00022498,2]
[315919816,1709281851635,-500.0,0.00022498,2]
[315919817,1709281851644,-500.0,0.00022498,2]
[315919818,1709281851653,-502.78720873,0.00022498,2]
[315919819,1709281851664,-500.0,0.00022498,2]
[315919820,1709281851673,-500.0,0.00022498,2]
[315919821,1709281851683,-500.0,0.00022498,2]
[315919822,1709281851691,-778.83,0.00022498,2]
[315919823,1709281851701,-500.0,0.00022498,2]
[315919824,1709281851710,-500.0,0.00022498,2]
[315919825,1709281851719,-500.0,0.00022498,2]
[315919826,1709281851730,-500.0,0.00022498,2]
[315919827,1709281851739,-526.98345441,0.00022498,2]
[315919828,1709281851748,-500.0,0.00022498,2]
[315919829,1709281851757,-500.0,0.00022498,2]
[315919830,1709281851766,-500.0,0.00022498,2]
[315919831,1709281851776,-500.0,0.00022498,2]
[315919832,1709281851785,-500.0,0.00022498,2]
[315919833,1709281851794,-500.0,0.00022498,2]
[315919834,1709281851803,-500.0,0.00022498,2]
[315919835,1709281851812,-500.0,0.00022498,2]
[315919836,1709281851822,-500.0,0.00022498,2]
[315919837,1709281851830,-500.0,0.00022498,2]
[315919838,1709281851839,-500.0,0.00022498,2]
[315919839,1709281851848,-500.0,0.00022498,2]
[315919840,1709281851858,-500.0,0.00022498,2]
[315919841,1709281851866,-500.0,0.00022498,2]
[315919842,1709281851875,-500.0,0.00022498,2]
[315919843,1709281851884,-500.0,0.00022498,2]
[315919844,1709281851893,-500.0,0.00022498,2]
[315919845,1709281851902,-500.0,0.00022498,2]
[315919846,1709281851914,-500.0,0.00022498,2]
[315919847,1709281851923,-503.10208303,0.00022498,2]
[315919848,1709281851933,-500.0,0.00022498,2]
[315919849,1709281851941,-610.77304928,0.00022498,2]
[315919850,1709281851951,-500.0,0.00022498,2]
[315919851,1709281851959,-500.0,0.00022498,2]
[315919852,1709281851968,-503.28100008,0.00022498,2]
[315919853,1709281851977,-519.0964192,0.00022498,2]
[315919854,1709281851986,-500.0,0.00022498,2]
[315919855,1709281851996,-500.0,0.00022498,2]
[315919856,1709281852005,-500.0,0.00022498,2]
[315919857,1709281852014,-500.0,0.00022498,2]
[315919858,1709281852024,-500.0,0.00022498,2]
[315919859,1709281852033,-500.0,0.00022498,2]
[315919860,1709281852043,-500.0,0.00022498,2]
[315919861,1709281852051,-500.0,0.00022498,2]
[315919862,1709281852061,-500.0,0.00022498,2]
[315919863,1709281852070,-507.20100833,0.00022498,2]
[315919864,1709281852079,-500.0,0.00022498,2]
[315919865,1709281852089,-500.0,0.00022498,2]
[315919866,1709281852098,-500.0,0.00022498,2]
[315919867,1709281852107,-500.0,0.00022498,2]
[315919868,1709281852116,-500.0,0.00022498,2]
[315919869,1709281852126,-500.0,0.00022498,2]
[315919870,1709281852136,-500.0,0.00022498,2]
[315919871,1709281852146,-552.7677013,0.00022498,2]
[315919872,1709281852158,-500.0,0.00022498,2]
[315919873,1709281852169,-509.30861704,0.00022498,2]
[315919874,1709281852179,-500.0,0.00022498,2]
[315919875,1709281852190,-500.0,0.00022498,2]
[315919876,1709281852200,-500.0,0.00022498,2]
[315919877,1709281852210,-508.82222183,0.00022498,2]
[315919878,1709281852219,-500.0,0.00022498,2]
[315919879,1709281852228,-500.0,0.00022498,2]
[315919880,1709281852237,-500.0,0.00022498,2]
[315919881,1709281852247,-500.0,0.00022498,2]
[315919882,1709281852256,-500.0,0.00022498,2]
[315919883,1709281852265,-500.0,0.00022498,2]
[315919884,1709281852274,-500.0,0.00022498,2]
[315919885,1709281852283,-500.0,0.00022498,2]
[315919886,1709281852292,-500.0,0.00022498,2]
[315919887,1709281852302,-500.0,0.00022498,2]
[315919888,1709281852311,-500.0,0.00022498,2]
[315919889,1709281852321,-500.0,0.00022498,2]
[315919890,1709281852331,-520.87543679,0.00022498,2]
[315919891,1709281852340,-500.0,0.00022498,2]
[315919892,1709281852350,-500.0,0.00022498,2]
[315919893,1709281852359,-500.0,0.00022498,2]
[315919894,1709281852368,-500.0,0.00022498,2]
[315919895,1709281852377,-500.0,0.00022498,2]
[315919896,1709281852387,-500.0,0.00022498,2]
[315919897,1709281852396,-500.0,0.00022498,2]
[315919898,1709281852405,-500.0,0.00022498,2]
[315919899,1709281852415,-500.0,0.00022498,2]
[315919900,1709281852424,-234.54109813,0.00022498,2]
[315919901,1709281852433,-500.0,0.00022498,2]
[315919902,1709281852442,-500.0,0.00022498,2]